{"text_format":"2","workbook":"xlsx","n_sheets":3,"sheets":["Rechner","Drop-Downs","Berechnung"],"not_rendered":{"charts":0,"images":2,"macros":0,"external_links":0,"defined_names":1,"comments":0,"pivot_tables":0},"unopened":[],"bounds":{"document_bytes":16777216,"sheet_cells":100000,"run_cost":"one","rows_first":2000,"rows_last":500,"rows_between":2000,"halvings":0,"cell_chars":16384,"cell_head_chars":4096},"cells_cut":0,"cells_raw":0,"read":"whole","date_system":"1900"}

{"sheet":"Rechner","index":0,"n_rows":34,"n_cols":6,"rows_kept":34,"cut":false,"hidden":false,"merged":[]}
[]
[null,null,"ÖTV ITN AUSTRIA - RECHNER"]
[null,null,"gültig ab 1. Jänner 2023"]
[]
[null,null,"MEINE ITN VOR DEM SPIEL"]
[]
[null,null,"Info zu meinem Sicherheitskoeffizienten (SiK)"]
[null,null,"Die ITN meines Gegners vor dem Spiel"]
[null,null,"Info zum SiK meines Gegners"]
[null,null,"Sieg-Erfassung"]
[null,null,"Information zum Spiel"]
[null,null,"Information zum Ergebnis"]
[null,null,"MEINE ITN NACH DEM SPIEL",{"$f":"IF(Berechnung!B21<1,1,Berechnung!B21)","v":1}]
[null,null,"Die ITN meines Gegners nach dem Spiel",{"$f":"IF(Berechnung!B22<1,1,Berechnung!B22)","v":1}]
[]
[null,null,"ACHTUNG: Aufgrund von Rundungsfehlern kann es zu Abweichungen im Tausendstel-Bereich kommen!"]
[]
[null,null,null,"INFORMATIONEN ZUR BERECHNUNG"]
[]
[{"$nulls":5},"ITN vor dem Spiel"]
[null,null,null,1,"Sieger",{"$f":"IF(Berechnung!B3=3,Rechner!D8,Rechner!D5)","v":0}]
[{"$nulls":4},"Verlierer",{"$f":"IF(Berechnung!B3=2,Rechner!D8,Rechner!D5)","v":0}]
[]
[{"$nulls":4},"Differenz-Wert (d): Verlierer - Sieger",{"$f":"Berechnung!B8","v":0}]
[{"$nulls":4},"Ich bin",{"$f":"IF(Berechnung!B13=1,\"keine Auswahl getroffen\",IF(Berechnung!B13=2,'Drop-Downs'!A15,'Drop-Downs'!A16))","v":"keine Auswahl getroffen"}]
[null,null,null,2,"Mein Gegner ist",{"$f":"IF(Berechnung!B14=1,\"keine Auswahl getroffen\",IF(Berechnung!B14=2,'Drop-Downs'!A15,'Drop-Downs'!A16))","v":"keine Auswahl getroffen"}]
[{"$nulls":4},"Veränderung für mich",{"$f":"D13-D5","v":1}]
[{"$nulls":4},"Veränderung für meinen Gegner",{"$f":"D14-D8","v":1}]
[]
[null,null,null,3,"Bewertung der ITN-Veränderung",{"$f":"IF(OR(Berechnung!D4=0.5,Berechnung!D5=0.5),0.5,1)","v":0.5}]
[]
[{"$nulls":5},"ITN nach dem Spiel"]
[null,null,null,4,"Sieger",{"$f":"IF(Berechnung!B3=2,Rechner!D13,Rechner!D14)","v":1}]
[{"$nulls":4},"Verlierer",{"$f":"IF(Berechnung!B3=3,Rechner!D13,Rechner!D14)","v":1}]

{"sheet":"Drop-Downs","index":1,"n_rows":16,"n_cols":1,"rows_kept":16,"cut":false,"hidden":true,"merged":[]}
["Bitte auswählen..."]
["Ich habe gewonnen!"]
["Ich habe verloren."]
[]
["Bitte auswählen..."]
["Spiel hat im Rahmen eines ÖTV- oder ITN-Turniers stattgefunden."]
["Spiel hat im Rahmen der Mannschaftsmeisterschaft stattgefunden."]
["Spiel war ein vereins-internes Einzelspiel."]
[]
["Bitte auswählen..."]
["Normal-Resultat (2 gewonnene Sätze auf 6 mit/ohne MTB im dritten Satz)"]
["Sonder-Resultat (2 kurze Sätze / 1 langer Satz / nur MTB-Zählweise)"]
[]
["Bitte auswählen..."]
["sicher"]
["unsicher"]

{"sheet":"Berechnung","index":2,"n_rows":22,"n_cols":4,"rows_kept":22,"cut":false,"hidden":true,"merged":[]}
["Formel"]
[null,null,"Sonder-Anzeige","Faktor"]
["Sieg-Erfassung",1,{"$f":"IF(B3=1,\"Bitte wählen Sie unten aus ...\",\"\")","v":"Bitte wählen Sie unten aus ..."},{"$f":"IF(B3=2,-1,1)","v":1}]
["Spiel-Information",1,{"$f":"IF(B4=1,\"Bitte wählen Sie unten aus ...\",\"\")","v":"Bitte wählen Sie unten aus ..."},{"$f":"IF(OR(B4=2,B4=3),1,0.5)","v":0.5}]
["Ergebnis-Information",1,"Bitte wählen Sie unten aus ...",{"$f":"IF(B5=2,1,0.5)","v":0.5}]
[]
["Veränderungswerte"]
["x",{"$f":"IF(B3=2,Rechner!D8-Rechner!D5,Rechner!D5-Rechner!D8)","v":0}]
["d rechnerisch",{"$f":"ROUND(0.25/(1+2.595*EXP(3.5*B8)),3)","v":7.0000000000000007E-2}]
["d tatsächlich",{"$f":"B9","v":7.0000000000000007E-2}]
["d korrigiert",{"$f":"IF(OR(B4=4,B5=3),B10*0.5,B10)","v":7.0000000000000007E-2}]
[]
["Sicherheitskoeffizient",1,"Spieler 1"]
[null,1,"Spieler 2"]
[]
["SiK",{"$f":"IF(B13<=2,1,0.5)","v":1},"Spieler 1"]
[null,{"$f":"IF(B14<=2,1,0.5)","v":1},"Spieler 2"]
["SiK-Faktor",{"$f":"IF(B16>B17,0.5,IF(B16=B17,1,2))","v":1},"Spieler 1"]
[null,{"$f":"IF(B17>B16,0.5,IF(B17=B16,1,2))","v":1},"Spieler 2"]
[]
["Meine ITN danach",{"$f":"IF(Berechnung!B3=2,Rechner!D5-Berechnung!B11*B18,Rechner!D5+Berechnung!B11*B18)","v":7.0000000000000007E-2}]
["Gegner-ITN danach",{"$f":"IF(Berechnung!B3=2,Rechner!D8+Berechnung!B11*B19,Rechner!D8-Berechnung!B11*B19)","v":-7.0000000000000007E-2}]